[Event "Late-Titled-Tuesday-Blitz-January-30-2024"]
[Site "Chess.com"]
[Date "2024.01.30"]
[Round "3"]
[White "cristianserban1"]
[Black "NowInChess"]
[Result "0-1"]
[WhiteElo "2543"]
[BlackElo "2309"]
[TimeControl "180+1"]
[EndTime "14:28:55 PST"]
[Termination "NowInChess won by resignation"]

1. Nf3 {[%clk 0:02:24.7]} 1... Nf6 {[%clk 0:02:59.2]} 2. g3 {[%clk 0:02:25.6]}
2... g6 {[%clk 0:02:59.7]} 3. Bg2 {[%clk 0:02:25.8]} 3... Bg7 {[%clk 0:03:00.3]}
4. O-O {[%clk 0:02:26.7]} 4... O-O {[%clk 0:03:00.5]} 5. d4 {[%clk 0:02:27.6]}
5... d6 {[%clk 0:02:59.6]} 6. b3 {[%clk 0:02:22.2]} 6... b5 {[%clk 0:02:36.4]}
7. Bb2 {[%clk 0:02:17.6]} 7... Bb7 {[%clk 0:02:35.9]} 8. Nbd2 {[%clk 0:02:11.3]}
8... Nbd7 {[%clk 0:02:35.3]} 9. Re1 {[%clk 0:02:01]} 9... c5 {[%clk 0:02:31.9]}
10. e4 {[%clk 0:01:55.7]} 10... cxd4 {[%clk 0:02:10.5]} 11. Nxd4 {[%clk
0:01:56.6]} 11... Qb6 {[%clk 0:01:58.8]} 12. a4 {[%clk 0:01:56.6]} 12... bxa4
{[%clk 0:01:55.2]} 13. Rxa4 {[%clk 0:01:41.3]} 13... Nc5 {[%clk 0:01:55]} 14.
Ra2 {[%clk 0:01:35.2]} 14... e5 {[%clk 0:01:40.2]} 15. Nc4 {[%clk 0:01:12.2]}
15... Qc7 {[%clk 0:01:29.1]} 16. Nb5 {[%clk 0:01:12.4]} 16... Qe7 {[%clk
0:01:17.3]} 17. Nbxd6 {[%clk 0:01:09.1]} 17... Rfd8 {[%clk 0:01:12.9]} 18. Ba3
{[%clk 0:01:08.9]} 18... Ncxe4 {[%clk 0:00:58.2]} 19. Qa1 {[%clk 0:00:31]} 19...
Nxd6 {[%clk 0:00:49.5]} 20. Bxd6 {[%clk 0:00:31.1]} 20... Rxd6 {[%clk
0:00:44.5]} 21. Bxb7 {[%clk 0:00:30.2]} 21... Rb8 {[%clk 0:00:37.6]} 22. Nxd6
{[%clk 0:00:29.5]} 22... Qxd6 {[%clk 0:00:37.4]} 23. Bg2 {[%clk 0:00:29.6]}
23... Ng4 {[%clk 0:00:20.3]} 24. Qd1 {[%clk 0:00:24.1]} 24... Qe6 {[%clk
0:00:09.5]} 25. Bd5 {[%clk 0:00:19.6]} 25... Qf5 {[%clk 0:00:06.5]} 26. Qf3
{[%clk 0:00:18.4]} 26... Qd7 {[%clk 0:00:04.8]} 27. Bxf7+ {[%clk 0:00:17.7]}
27... Qxf7 {[%clk 0:00:02.4]} 28. Qf4 {[%clk 0:00:18.2]} 28... exf4 {[%clk
0:00:01.8]} 29. Ra6 {[%clk 0:00:16.3]} 29... Rf8 {[%clk 0:00:02.7]} 30. f3
{[%clk 0:00:16.6]} 30... fxg3 {[%clk 0:00:03.2]} 31. Rf1 {[%clk 0:00:15.2]}
31... Nf2 {[%clk 0:00:02.9]} 32. hxg3 {[%clk 0:00:15.5]} 32... Qxf3 {[%clk
0:00:01.9]} 33. Kh2 {[%clk 0:00:14.8]} 33... Qh5+ {[%clk 0:00:02.4]} 34. Kg2
{[%clk 0:00:15.1]} 34... Ng4 {[%clk 0:00:02.8]} 35. Rxf8+ {[%clk 0:00:15.1]}
35... Kxf8 {[%clk 0:00:02.9]} 36. Rxa7 {[%clk 0:00:16]} 36... Bd4 {[%clk
0:00:03]} 37. Ra8+ {[%clk 0:00:15.6]} 37... Kg7 {[%clk 0:00:03.6]} 38. Ra4
{[%clk 0:00:16.2]} 38... Kg8 {[%clk 0:00:03.8]} 39. Rxd4 {[%clk 0:00:16.2]}
39... Kg7 {[%clk 0:00:04.6]} 40. Rd7+ {[%clk 0:00:16.4]} 40... Kh6 {[%clk
0:00:03.6]} 41. c4 {[%clk 0:00:17.3]} 41... Qe5 {[%clk 0:00:03.4]} 42. Rd1
{[%clk 0:00:17.6]} 42... Qe2+ {[%clk 0:00:03.2]} 43. Kh3 {[%clk 0:00:17.8]}
43... Nf2+ {[%clk 0:00:03.2]} 44. Kh4 {[%clk 0:00:17.8]} 44... Nxd1 {[%clk
0:00:04.1]} 45. g4 {[%clk 0:00:18.4]} 45... Qe4 {[%clk 0:00:04.2]} 46. c5 {[%clk
0:00:18.1]} 46... Kg7 {[%clk 0:00:04.1]} 47. Kg3 {[%clk 0:00:19]} 47... Qc6
{[%clk 0:00:04.2]} 48. b4 {[%clk 0:00:19.1]} 48... Qb5 {[%clk 0:00:04.7]} 0-1

[Event "Late-Titled-Tuesday-Blitz-January-30-2024"]
[Site "Chess.com"]
[Date "2024.01.30"]
[Round "3"]
[White "Practical-Play"]
[Black "GMBenjaminBok"]
[Result "0-1"]
[WhiteElo "2608"]
[BlackElo "2935"]
[TimeControl "180+1"]
[EndTime "14:28:56 PST"]
[Termination "GMBenjaminBok won by checkmate"]

1. e4 {[%clk 0:03:00.9]} 1... c5 {[%clk 0:02:59.9]} 2. c3 {[%clk 0:02:58.5]}
2... Nf6 {[%clk 0:02:59.3]} 3. e5 {[%clk 0:02:53]} 3... Nd5 {[%clk 0:02:59.8]}
4. d4 {[%clk 0:02:53.1]} 4... cxd4 {[%clk 0:02:57.6]} 5. Nf3 {[%clk 0:02:52.8]}
5... Nc6 {[%clk 0:02:54.1]} 6. Bc4 {[%clk 0:02:52.3]} 6... Nb6 {[%clk
0:02:53.9]} 7. Bb3 {[%clk 0:02:50.7]} 7... d5 {[%clk 0:02:53.7]} 8. exd6 {[%clk
0:02:50.9]} 8... Qxd6 {[%clk 0:02:54.1]} 9. O-O {[%clk 0:02:48.7]} 9... Be6
{[%clk 0:02:53]} 10. Na3 {[%clk 0:02:48.4]} 10... dxc3 {[%clk 0:02:44.2]} 11.
Qe2 {[%clk 0:02:47.6]} 11... Bxb3 {[%clk 0:02:38.3]} 12. Nb5 {[%clk 0:02:46.6]}
12... Qd7 {[%clk 0:02:30.2]} 13. axb3 {[%clk 0:02:45.7]} 13... c2 {[%clk
0:02:27.8]} 14. Bf4 {[%clk 0:02:25.2]} 14... e6 {[%clk 0:01:28.5]} 15. Nc7+
{[%clk 0:02:22.4]} 15... Kd8 {[%clk 0:01:28.8]} 16. Nxa8 {[%clk 0:02:20.9]}
16... Nxa8 {[%clk 0:01:29.7]} 17. Qxc2 {[%clk 0:02:19.5]} 17... Nb6 {[%clk
0:01:24.8]} 18. Be3 {[%clk 0:02:03]} 18... Nd5 {[%clk 0:01:16.8]} 19. Bxa7
{[%clk 0:01:59]} 19... Bd6 {[%clk 0:01:15.3]} 20. Bc5 {[%clk 0:01:51.1]} 20...
Ke7 {[%clk 0:01:14.6]} 21. Rad1 {[%clk 0:01:48.5]} 21... h6 {[%clk 0:01:10.9]}
22. Rfe1 {[%clk 0:01:46]} 22... Ncb4 {[%clk 0:00:44.9]} 23. Qc4 {[%clk
0:01:32.9]} 23... Bxc5 {[%clk 0:00:36.7]} 24. Qxc5+ {[%clk 0:01:27.8]} 24... Qd6
{[%clk 0:00:36.5]} 25. Qb5 {[%clk 0:01:14.5]} 25... Qc6 {[%clk 0:00:33.9]} 26.
Qc4 {[%clk 0:01:04.2]} 26... Rc8 {[%clk 0:00:29.8]} 27. Ne5 {[%clk 0:00:59.6]}
27... Qe8 {[%clk 0:00:12.8]} 28. Qg4 {[%clk 0:00:48.1]} 28... Kf8 {[%clk
0:00:12.6]} 29. h3 {[%clk 0:00:41.4]} 29... Kg8 {[%clk 0:00:12.8]} 30. Nc4
{[%clk 0:00:27.2]} 30... Qe7 {[%clk 0:00:11.1]} 31. Qf3 {[%clk 0:00:24.9]} 31...
Qc7 {[%clk 0:00:10.6]} 32. Rd4 {[%clk 0:00:23.9]} 32... Nc2 {[%clk 0:00:09.6]}
33. Red1 {[%clk 0:00:16.9]} 33... Nxd4 {[%clk 0:00:09.9]} 34. Rxd4 {[%clk
0:00:17.8]} 34... b5 {[%clk 0:00:10.3]} 35. Nd2 {[%clk 0:00:08.8]} 35... Qc1+
{[%clk 0:00:09.1]} 36. Kh2 {[%clk 0:00:08.8]} 36... Qxb2 {[%clk 0:00:09]} 37.
Qd3 {[%clk 0:00:08.2]} 37... Rc3 {[%clk 0:00:05.4]} 38. Qxb5 {[%clk 0:00:06.9]}
38... Rc2 {[%clk 0:00:04.2]} 39. Qd3 {[%clk 0:00:06.3]} 39... g6 {[%clk
0:00:02.8]} 40. Nc4 {[%clk 0:00:06.3]} 40... Qa2 {[%clk 0:00:02.8]} 41. Ne3
{[%clk 0:00:05.8]} 41... Rxf2 {[%clk 0:00:02.5]} 42. Nxd5 {[%clk 0:00:02.1]}
42... Rxg2+ {[%clk 0:00:02.6]} 43. Kh1 {[%clk 0:00:01.8]} 43... Rh2+ {[%clk
0:00:03.5]} 44. Kg1 {[%clk 0:00:02]} 44... Qg2# {[%clk 0:00:04.4]} 0-1

[Event "Late-Titled-Tuesday-Blitz-January-30-2024"]
[Site "Chess.com"]
[Date "2024.01.30"]
[Round "3"]
[White "ChEsper99"]
[Black "RodokininEV"]
[Result "0-1"]
[WhiteElo "2152"]
[BlackElo "2650"]
[TimeControl "180+1"]
[EndTime "14:28:56 PST"]
[Termination "RodokininEV won on time"]

1. e4 {[%clk 0:02:59.8]} 1... c5 {[%clk 0:02:58.2]} 2. c3 {[%clk 0:02:58.6]}
2... Nf6 {[%clk 0:02:57.1]} 3. e5 {[%clk 0:02:58.9]} 3... Nd5 {[%clk 0:02:57]}
4. d4 {[%clk 0:02:59.8]} 4... cxd4 {[%clk 0:02:57.1]} 5. cxd4 {[%clk 0:03:00.7]}
5... Nc6 {[%clk 0:02:57.5]} 6. Nf3 {[%clk 0:03:00.6]} 6... g6 {[%clk 0:02:57.4]}
7. Bc4 {[%clk 0:02:47.1]} 7... Nb6 {[%clk 0:02:53.3]} 8. Bxf7+ {[%clk
0:02:29.2]} 8... Kxf7 {[%clk 0:02:54.2]} 9. Ng5+ {[%clk 0:02:29.4]} 9... Kg8
{[%clk 0:02:47.5]} 10. f4 {[%clk 0:02:09]} 10... d6 {[%clk 0:02:36.2]} 11. d5
{[%clk 0:02:04.8]} 11... Nb4 {[%clk 0:02:35.1]} 12. Nc3 {[%clk 0:01:57.3]} 12...
dxe5 {[%clk 0:02:34.7]} 13. fxe5 {[%clk 0:01:44]} 13... N4xd5 {[%clk 0:02:32.5]}
14. Qf3 {[%clk 0:01:44]} 14... Bf5 {[%clk 0:02:18.6]} 15. g4 {[%clk 0:01:38.2]}
15... Nxc3 {[%clk 0:02:18.8]} 16. bxc3 {[%clk 0:01:23.3]} 16... Qd5 {[%clk
0:02:18.6]} 17. gxf5 {[%clk 0:01:10.7]} 17... Qxe5+ {[%clk 0:02:08.6]} 18. Qe3
{[%clk 0:00:23.4]} 18... Qxf5 {[%clk 0:02:04.7]} 19. Rf1 {[%clk 0:00:20.9]}
19... Qd7 {[%clk 0:01:52.9]} 20. Qf4 {[%clk 0:00:07]} 20... Qd5 {[%clk
0:01:47.4]} 21. Qf7+ {[%clk 0:00:05.5]} 21... Qxf7 {[%clk 0:01:45.5]} 22. Nxf7
{[%clk 0:00:06.4]} 22... Bg7 {[%clk 0:01:34.5]} 23. Bd2 {[%clk 0:00:06.6]} 23...
Rc8 {[%clk 0:01:29.1]} 24. Nxh8 {[%clk 0:00:07.1]} 24... Bxh8 {[%clk 0:01:28.6]}
25. Rc1 {[%clk 0:00:07.4]} 25... Nc4 {[%clk 0:01:25.9]} 26. Rf4 {[%clk
0:00:07.8]} 26... Bf6 {[%clk 0:01:21.2]} 27. h4 {[%clk 0:00:03.3]} 27... Kg7
{[%clk 0:01:16.2]} 28. Rg4 {[%clk 0:00:02.9]} 28... b5 {[%clk 0:01:12.2]} 29.
Ke2 {[%clk 0:00:03]} 29... Rd8 {[%clk 0:01:10.7]} 30. Be3 {[%clk 0:00:03.1]}
30... h5 {[%clk 0:01:07.7]} 31. Rg3 {[%clk 0:00:02.4]} 31... Bxh4 {[%clk
0:01:01.8]} 32. Rf3 {[%clk 0:00:02.6]} 32... Bf6 {[%clk 0:01:01.6]} 33. Bd4
{[%clk 0:00:02.2]} 33... e5 {[%clk 0:01:00.1]} 34. Bxa7 {[%clk 0:00:01.4]} 34...
Ra8 {[%clk 0:00:59]} 35. Be3 {[%clk 0:00:02.1]} 35... Rxa2+ {[%clk 0:00:59.1]}
36. Kf1 {[%clk 0:00:02.7]} 36... e4 {[%clk 0:00:48.7]} 37. Rf2 {[%clk
0:00:01.9]} 37... Nxe3+ {[%clk 0:00:47.7]} 38. Kg1 {[%clk 0:00:02.1]} 38... Rxf2
{[%clk 0:00:47.6]} 39. Kxf2 {[%clk 0:00:03]} 39... Nc4 {[%clk 0:00:48.4]} 40.
Rd1 {[%clk 0:00:02.2]} 40... Bxc3 {[%clk 0:00:47.6]} 41. Rd7+ {[%clk 0:00:02.3]}
41... Kf6 {[%clk 0:00:47.3]} 42. Kg2 {[%clk 0:00:03.2]} 42... b4 {[%clk
0:00:46.9]} 43. Kh3 {[%clk 0:00:04.1]} 43... b3 {[%clk 0:00:46.9]} 44. Rc7
{[%clk 0:00:04.8]} 44... b2 {[%clk 0:00:46]} 45. Rxc4 {[%clk 0:00:05.7]} 45...
b1=Q {[%clk 0:00:46.2]} 46. Rxc3 {[%clk 0:00:05.5]} 46... Qd3+ {[%clk
0:00:46.2]} 47. Rxd3 {[%clk 0:00:04.8]} 47... exd3 {[%clk 0:00:47.1]} 48. Kg3
{[%clk 0:00:05.2]} 48... d2 {[%clk 0:00:47.6]} 49. Kh4 {[%clk 0:00:05.4]} 49...
d1=Q {[%clk 0:00:47.5]} 50. Kg3 {[%clk 0:00:05.8]} 50... g5 {[%clk 0:00:47.2]}
51. Kh2 {[%clk 0:00:06.2]} 51... Qa4 {[%clk 0:00:47.9]} 52. Kg2 {[%clk
0:00:07.1]} 52... h4 {[%clk 0:00:48.6]} 53. Kh2 {[%clk 0:00:08]} 53... g4 {[%clk
0:00:49.5]} 54. Kg2 {[%clk 0:00:08.6]} 54... Kg5 {[%clk 0:00:50.4]} 55. Kh2
{[%clk 0:00:09.5]} 55... h3 {[%clk 0:00:51]} 56. Kh1 {[%clk 0:00:08.6]} 56... g3
{[%clk 0:00:50.5]} 57. Kg1 {[%clk 0:00:09.5]} 57... Qe8 {[%clk 0:00:47.9]} 0-1

[Event "Late-Titled-Tuesday-Blitz-January-30-2024"]
[Site "Chess.com"]
[Date "2024.01.30"]
[Round "3"]
[White "sansanathalia"]
[Black "Navyblue1"]
[Result "1-0"]
[WhiteElo "2395"]
[BlackElo "2163"]
[TimeControl "180+1"]
[EndTime "14:28:57 PST"]
[Termination "sansanathalia won on time"]

1. e4 {[%clk 0:03:00.9]} 1... c5 {[%clk 0:02:59.8]} 2. Nf3 {[%clk 0:03:00.6]}
2... d6 {[%clk 0:02:59.4]} 3. d4 {[%clk 0:03:00.4]} 3... cxd4 {[%clk 0:03:00.3]}
4. Qxd4 {[%clk 0:03:00.3]} 4... a6 {[%clk 0:02:58.2]} 5. c4 {[%clk 0:02:55.5]}
5... Nc6 {[%clk 0:02:56.3]} 6. Qd2 {[%clk 0:02:55]} 6... Nf6 {[%clk 0:02:52.9]}
7. Nc3 {[%clk 0:02:53.1]} 7... g6 {[%clk 0:02:50.3]} 8. Be2 {[%clk 0:02:52.6]}
8... Bg7 {[%clk 0:02:49.7]} 9. O-O {[%clk 0:02:51.8]} 9... O-O {[%clk
0:02:48.5]} 10. Rb1 {[%clk 0:02:44.9]} 10... a5 {[%clk 0:02:08.2]} 11. a3 {[%clk
0:02:36.9]} 11... a4 {[%clk 0:01:49.8]} 12. Bd1 {[%clk 0:02:31.1]} 12... Na5
{[%clk 0:01:35.5]} 13. Qd3 {[%clk 0:02:11]} 13... Be6 {[%clk 0:01:28.1]} 14. Nd5
{[%clk 0:01:54.5]} 14... Nd7 {[%clk 0:01:26.9]} 15. Be3 {[%clk 0:01:47.9]} 15...
Rc8 {[%clk 0:01:08.3]} 16. Bxa4 {[%clk 0:01:43]} 16... Nxc4 {[%clk 0:01:03.5]}
17. Bd4 {[%clk 0:01:19.9]} 17... Nde5 {[%clk 0:00:34.7]} 18. Nxe5 {[%clk
0:01:08.8]} 18... Nxe5 {[%clk 0:00:31.7]} 19. Bxe5 {[%clk 0:00:58.4]} 19... Bxe5
{[%clk 0:00:28.7]} 20. f4 {[%clk 0:00:56.4]} 20... Bg7 {[%clk 0:00:25.2]} 21.
Bb3 {[%clk 0:00:45.4]} 21... Bxd5 {[%clk 0:00:19.9]} 22. Bxd5 {[%clk 0:00:42]}
22... Qb6+ {[%clk 0:00:20.1]} 23. Kh1 {[%clk 0:00:41.5]} 23... e6 {[%clk
0:00:20.2]} 24. Ba2 {[%clk 0:00:38.8]} 24... Rfd8 {[%clk 0:00:20.3]} 25. f5
{[%clk 0:00:38.4]} 25... e5 {[%clk 0:00:14.3]} 26. fxg6 {[%clk 0:00:37.6]} 26...
hxg6 {[%clk 0:00:14]} 27. Bxf7+ {[%clk 0:00:37.5]} 27... Kh7 {[%clk 0:00:14.2]}
28. Qh3+ {[%clk 0:00:24.4]} 28... Bh6 {[%clk 0:00:13.5]} 29. Qe6 {[%clk
0:00:23.9]} 29... Rg8 {[%clk 0:00:09.6]} 30. Bxg8+ {[%clk 0:00:20.5]} 30... Rxg8
{[%clk 0:00:10.5]} 31. Rf7+ {[%clk 0:00:20.1]} 31... Rg7 {[%clk 0:00:10.4]} 32.
Rbf1 {[%clk 0:00:18.6]} 32... Qxb2 {[%clk 0:00:08.1]} 33. Rxg7+ {[%clk
0:00:15.6]} 33... Bxg7 {[%clk 0:00:07.4]} 34. Qxd6 {[%clk 0:00:15.4]} 34... Qb5
{[%clk 0:00:06.3]} 35. Qd1 {[%clk 0:00:12.8]} 35... Qc4 {[%clk 0:00:04.9]} 36.
Qf3 {[%clk 0:00:13]} 36... Qa2 {[%clk 0:00:03.6]} 37. h4 {[%clk 0:00:12.6]}
37... Qe6 {[%clk 0:00:02.1]} 38. h5 {[%clk 0:00:12.1]} 38... gxh5 {[%clk
0:00:01.2]} 39. Qxh5+ {[%clk 0:00:11.7]} 39... Qh6 {[%clk 0:00:02.1]} 40. Qxh6+
{[%clk 0:00:11.5]} 40... Kxh6 {[%clk 0:00:03]} 41. Rb1 {[%clk 0:00:11.4]} 41...
Bf8 {[%clk 0:00:02.2]} 42. Rxb7 {[%clk 0:00:11.8]} 42... Bxa3 {[%clk 0:00:02.5]}
43. Rb5 {[%clk 0:00:09.5]} 1-0

[Event "Late-Titled-Tuesday-Blitz-January-30-2024"]
[Site "Chess.com"]
[Date "2024.01.30"]
[Round "3"]
[White "wqws"]
[Black "N_Mullodzhanov"]
[Result "1-0"]
[WhiteElo "2610"]
[BlackElo "2449"]
[TimeControl "180+1"]
[EndTime "14:28:58 PST"]
[Termination "wqws won by checkmate"]

1. e4 {[%clk 0:03:00.9]} 1... c6 {[%clk 0:02:59.1]} 2. d4 {[%clk 0:03:00.7]}
2... d5 {[%clk 0:02:59.4]} 3. e5 {[%clk 0:03:01.1]} 3... Bf5 {[%clk 0:02:58.8]}
4. h4 {[%clk 0:03:00.8]} 4... h6 {[%clk 0:02:58.8]} 5. c4 {[%clk 0:03:01.2]}
5... e6 {[%clk 0:02:58.7]} 6. Nc3 {[%clk 0:03:01.6]} 6... Bb4 {[%clk 0:02:53.2]}
7. Ne2 {[%clk 0:02:55.9]} 7... Ne7 {[%clk 0:02:50.5]} 8. a3 {[%clk 0:02:52.1]}
8... Bxc3+ {[%clk 0:02:41.1]} 9. Nxc3 {[%clk 0:02:52]} 9... Nd7 {[%clk
0:02:36.4]} 10. g4 {[%clk 0:02:51.5]} 10... Bg6 {[%clk 0:02:32]} 11. cxd5 {[%clk
0:02:51.1]} 11... Nxd5 {[%clk 0:02:30.2]} 12. Nxd5 {[%clk 0:02:50.7]} 12... cxd5
{[%clk 0:02:29.2]} 13. h5 {[%clk 0:02:50.7]} 13... Be4 {[%clk 0:02:28.6]} 14. f3
{[%clk 0:02:50]} 14... Bh7 {[%clk 0:02:28.5]} 15. Bd3 {[%clk 0:02:40.9]} 15...
Bxd3 {[%clk 0:02:27]} 16. Qxd3 {[%clk 0:02:41.8]} 16... Rc8 {[%clk 0:02:26.1]}
17. Bd2 {[%clk 0:02:41.4]} 17... b5 {[%clk 0:02:13.4]} 18. Bb4 {[%clk
0:02:32.3]} 18... a5 {[%clk 0:02:11.2]} 19. Bd6 {[%clk 0:02:31.6]} 19... Qb6
{[%clk 0:02:10.9]} 20. Ke2 {[%clk 0:02:22.6]} 20... Rc4 {[%clk 0:02:07]} 21.
Rac1 {[%clk 0:02:21.4]} 21... Qc6 {[%clk 0:01:55]} 22. Kd2 {[%clk 0:02:17.1]}
22... a4 {[%clk 0:01:36]} 23. Rxc4 {[%clk 0:02:14.5]} 23... dxc4 {[%clk
0:01:34.1]} 24. Qe4 {[%clk 0:02:14.3]} 24... Qxe4 {[%clk 0:01:29.5]} 25. fxe4
{[%clk 0:02:15.2]} 25... Nb6 {[%clk 0:01:28.4]} 26. Kc3 {[%clk 0:02:14.3]} 26...
Nc8 {[%clk 0:01:26.3]} 27. Bc5 {[%clk 0:02:12]} 27... Kd7 {[%clk 0:01:26.5]} 28.
Rf1 {[%clk 0:02:11.2]} 28... f6 {[%clk 0:01:15.7]} 29. exf6 {[%clk 0:02:10.3]}
29... gxf6 {[%clk 0:01:16.6]} 30. Rxf6 {[%clk 0:02:10.7]} 30... Rg8 {[%clk
0:01:16.8]} 31. Rg6 {[%clk 0:02:10.2]} 31... Rh8 {[%clk 0:01:10.5]} 32. d5
{[%clk 0:02:09.2]} 32... exd5 {[%clk 0:01:08.9]} 33. exd5 {[%clk 0:02:09.7]}
33... Re8 {[%clk 0:01:08.7]} 34. Rxh6 {[%clk 0:02:03.9]} 34... Re1 {[%clk
0:01:07]} 35. Rh7+ {[%clk 0:02:02.6]} 35... Kd8 {[%clk 0:01:04.7]} 36. h6 {[%clk
0:02:02.4]} 36... Rc1+ {[%clk 0:01:04.3]} 37. Kd2 {[%clk 0:02:01.9]} 37... Rb1
{[%clk 0:01:03.5]} 38. Bd4 {[%clk 0:02:00.6]} 38... b4 {[%clk 0:01:03.4]} 39.
axb4 {[%clk 0:02:00.4]} 39... Nd6 {[%clk 0:01:03.7]} 40. Ra7 {[%clk 0:01:57.5]}
40... Ne4+ {[%clk 0:00:58.8]} 41. Kc2 {[%clk 0:01:56.5]} 41... Rh1 {[%clk
0:00:57.4]} 42. h7 {[%clk 0:01:56.8]} 42... c3 {[%clk 0:00:54]} 43. bxc3 {[%clk
0:01:54.1]} 43... a3 {[%clk 0:00:54.1]} 44. h8=Q+ {[%clk 0:01:52.9]} 44... Rxh8
{[%clk 0:00:53.4]} 45. Bxh8 {[%clk 0:01:53.8]} 45... a2 {[%clk 0:00:48.4]} 46.
Rxa2 {[%clk 0:01:53.7]} 46... Ke7 {[%clk 0:00:48.7]} 47. Kd3 {[%clk 0:01:53.3]}
47... Ng5 {[%clk 0:00:48.1]} 48. Re2+ {[%clk 0:01:52.1]} 48... Kd6 {[%clk
0:00:48.4]} 49. c4 {[%clk 0:01:52.5]} 49... Nf7 {[%clk 0:00:47.5]} 50. Bd4
{[%clk 0:01:52.7]} 50... Nh6 {[%clk 0:00:45.1]} 51. Re4 {[%clk 0:01:51.1]} 51...
Nf7 {[%clk 0:00:44.9]} 52. b5 {[%clk 0:01:51.2]} 52... Ng5 {[%clk 0:00:44.6]}
53. Re5 {[%clk 0:01:49.4]} 53... Nf3 {[%clk 0:00:43.5]} 54. Re6+ {[%clk
0:01:49.8]} 54... Kc7 {[%clk 0:00:43.5]} 55. b6+ {[%clk 0:01:46.8]} 55... Kb7
{[%clk 0:00:42.9]} 56. Be3 {[%clk 0:01:47.3]} 56... Ne1+ {[%clk 0:00:41.6]} 57.
Ke4 {[%clk 0:01:44]} 57... Nc2 {[%clk 0:00:40.8]} 58. c5 {[%clk 0:01:38.6]}
58... Nb4 {[%clk 0:00:40.2]} 59. c6+ {[%clk 0:01:38.7]} 59... Ka6 {[%clk
0:00:33.9]} 60. b7 {[%clk 0:01:34.2]} 60... Kb5 {[%clk 0:00:33.1]} 61. b8=Q+
{[%clk 0:01:29.1]} 61... Kc4 {[%clk 0:00:33.1]} 62. c7 {[%clk 0:01:29.5]} 62...
Kb3 {[%clk 0:00:28.7]} 63. Rb6 {[%clk 0:01:28.2]} 63... Kc2 {[%clk 0:00:24.7]}
64. Rxb4 {[%clk 0:01:27.2]} 64... Kd1 {[%clk 0:00:24.9]} 65. d6 {[%clk
0:01:27.2]} 65... Ke2 {[%clk 0:00:24.8]} 66. d7 {[%clk 0:01:27.6]} 66... Kf1
{[%clk 0:00:24.9]} 67. d8=Q {[%clk 0:01:27.5]} 67... Kg2 {[%clk 0:00:25.1]} 68.
g5 {[%clk 0:01:28.1]} 68... Kh3 {[%clk 0:00:25.2]} 69. g6 {[%clk 0:01:28.3]}
69... Kg4 {[%clk 0:00:25.3]} 70. g7 {[%clk 0:01:27.7]} 70... Kh5 {[%clk
0:00:25.4]} 71. c8=Q {[%clk 0:01:22]} 71... Kg6 {[%clk 0:00:23.2]} 72. g8=Q+
{[%clk 0:01:21]} 72... Kh5 {[%clk 0:00:23.3]} 73. Rb5# {[%clk 0:01:17.1]} 1-0

[Event "Late-Titled-Tuesday-Blitz-January-30-2024"]
[Site "Chess.com"]
[Date "2024.01.30"]
[Round "3"]
[White "RCone"]
[Black "SmirnovTimofey2000"]
[Result "1-0"]
[WhiteElo "2315"]
[BlackElo "1942"]
[TimeControl "180+1"]
[EndTime "14:28:58 PST"]
[Termination "RCone won on time"]

1. e4 {[%clk 0:03:00.9]} 1... e5 {[%clk 0:02:56.7]} 2. Nf3 {[%clk 0:03:00.2]}
2... Nf6 {[%clk 0:02:56.3]} 3. Nc3 {[%clk 0:02:58.1]} 3... Bb4 {[%clk
0:02:55.4]} 4. Nxe5 {[%clk 0:02:56.1]} 4... O-O {[%clk 0:02:54.3]} 5. Be2 {[%clk
0:02:29.5]} 5... Re8 {[%clk 0:02:46]} 6. Nc4 {[%clk 0:02:17.5]} 6... Nxe4 {[%clk
0:02:30.3]} 7. O-O {[%clk 0:02:16.5]} 7... d5 {[%clk 0:02:21.1]} 8. Nxe4 {[%clk
0:02:09.2]} 8... dxc4 {[%clk 0:02:12.1]} 9. d3 {[%clk 0:01:57.9]} 9... cxd3
{[%clk 0:02:06.8]} 10. Bxd3 {[%clk 0:01:57.5]} 10... Bf5 {[%clk 0:02:00.7]} 11.
Qf3 {[%clk 0:01:55.4]} 11... Bxe4 {[%clk 0:01:53.3]} 12. Bxe4 {[%clk 0:01:54.9]}
12... c6 {[%clk 0:01:53.1]} 13. Be3 {[%clk 0:01:39.1]} 13... Qe7 {[%clk
0:01:50]} 14. Bd3 {[%clk 0:01:35.1]} 14... Bc5 {[%clk 0:01:41.1]} 15. Bd2 {[%clk
0:01:33]} 15... Nd7 {[%clk 0:01:35.9]} 16. Rfe1 {[%clk 0:01:32.3]} 16... Qf6
{[%clk 0:01:35.9]} 17. Qxf6 {[%clk 0:01:30.5]} 17... Nxf6 {[%clk 0:01:36.8]} 18.
h3 {[%clk 0:01:12.1]} 18... Kf8 {[%clk 0:01:32.3]} 19. Kf1 {[%clk 0:01:06.5]}
19... h6 {[%clk 0:01:30.9]} 20. Rad1 {[%clk 0:01:05.7]} 20... Rad8 {[%clk
0:01:29.4]} 21. Rxe8+ {[%clk 0:01:04.1]} 21... Rxe8 {[%clk 0:01:27.5]} 22. c4
{[%clk 0:01:02.4]} 22... Ne4 {[%clk 0:01:22.9]} 23. Be1 {[%clk 0:00:57.7]} 23...
Rd8 {[%clk 0:01:03.2]} 24. Bc2 {[%clk 0:00:53.4]} 24... Rxd1 {[%clk 0:00:59.2]}
25. Bxd1 {[%clk 0:00:54.3]} 25... f5 {[%clk 0:00:52.8]} 26. f3 {[%clk 0:00:54]}
26... Nd6 {[%clk 0:00:51]} 27. b3 {[%clk 0:00:54.1]} 27... f4 {[%clk 0:00:45.1]}
28. Bc3 {[%clk 0:00:53.8]} 28... g5 {[%clk 0:00:42.1]} 29. Bc2 {[%clk
0:00:54.2]} 29... Kf7 {[%clk 0:00:38.2]} 30. Ke2 {[%clk 0:00:52.5]} 30... Be3
{[%clk 0:00:33.3]} 31. Bh7 {[%clk 0:00:51.4]} 31... Ne8 {[%clk 0:00:25.5]} 32.
Kd3 {[%clk 0:00:50]} 32... Nf6 {[%clk 0:00:23.9]} 33. Bf5 {[%clk 0:00:50.6]}
33... c5 {[%clk 0:00:21.7]} 34. Be5 {[%clk 0:00:44.5]} 34... a6 {[%clk
0:00:10.6]} 35. Bc8 {[%clk 0:00:43]} 35... b5 {[%clk 0:00:11]} 36. Bxa6 {[%clk
0:00:42.3]} 36... bxc4+ {[%clk 0:00:10.8]} 37. Bxc4+ {[%clk 0:00:41.6]} 37...
Kg6 {[%clk 0:00:09.7]} 38. Bxf6 {[%clk 0:00:37.3]} 38... Kxf6 {[%clk 0:00:10.6]}
39. Ke4 {[%clk 0:00:37.1]} 39... h5 {[%clk 0:00:09.8]} 40. a4 {[%clk 0:00:36.2]}
40... Bd2 {[%clk 0:00:09.6]} 41. Kd5 {[%clk 0:00:35.1]} 41... Bb4 {[%clk
0:00:09.8]} 42. Kc6 {[%clk 0:00:34.6]} 42... Ke5 {[%clk 0:00:09.8]} 43. Bf7
{[%clk 0:00:33.3]} 43... h4 {[%clk 0:00:09.3]} 44. Kb5 {[%clk 0:00:31.9]} 44...
Kd6 {[%clk 0:00:08.4]} 45. a5 {[%clk 0:00:31.3]} 45... Kc7 {[%clk 0:00:08.4]}
46. a6 {[%clk 0:00:28.7]} 46... Kb8 {[%clk 0:00:08.1]} 47. Kb6 {[%clk
0:00:27.7]} 47... Ba3 {[%clk 0:00:07.1]} 48. a7+ {[%clk 0:00:27.5]} 1-0